fUST/lending_fUST_20260607
["ID","MTS","AMOUNT","RATE_DAILY","PERIOD"]
[424375272,1780816240000,-500.0,0.00019178,2]
[424375274,1780816240000,-3533.52,0.00019178,2]
[424375251,1780816240000,-500.0,0.00019178,2]
[424375271,1780816240000,-500.0,0.00019178,2]
[424375269,1780816240000,-1006.18,0.00019178,2]
[424375270,1780816240000,-669.38,0.00019178,2]
[424375267,1780816240000,-500.0,0.00019178,2]
[424375273,1780816240000,-562.29463059,0.00019178,2]
[424375268,1780816240000,-500.0,0.00019178,2]
[424375315,1780816241000,-500.0,0.00019178,2]
[424375316,1780816241000,-500.0,0.00019178,2]
[424375318,1780816241000,-500.0,0.00019178,2]
[424375321,1780816241000,-500.0,0.00019178,2]
[424375320,1780816241000,-2433.39,0.00019178,2]
[424375317,1780816241000,-491.96855894,0.00019178,2]
[424375324,1780816241000,-500.0,0.00019178,2]
[424375319,1780816241000,-2656.97,0.00019178,2]
[424375327,1780816241000,-148.21590063,0.00019178,2]
[424375323,1780816241000,-500.0,0.00019178,2]
[424375326,1780816241000,-500.0,0.00019178,2]
[424375322,1780816241000,-561.03,0.00019178,2]
[424375325,1780816241000,-575.9,0.00019178,2]
[424375344,1780816609000,-500.0,0.0001159,2]
[424375345,1780816662000,-500.0,0.0001159,2]
[424375347,1780816677000,-102.04992641,0.0001159,2]
[424375348,1780816730000,-822.14,0.0001159,2]
[424375349,1780816742000,-2514.1157389,0.0001159,2]
[424375350,1780816795000,-626.71,0.00011591,2]
[424375352,1780816807000,-3649.19,0.00011591,2]
[424375353,1780816820000,-724.1,0.00011591,2]
[424375354,1780816873000,-626.71,0.0001159,6]
[424375355,1780816885000,-385.82023489,0.0001159,6]
[424375359,1780817232000,-175.24972488,0.00011591,2]
[424375360,1780817243000,-500.0,0.00011591,2]
[424375362,1780817255000,-396.38402651,0.00011591,2]
[424375361,1780817255000,-500.0,0.00011591,2]
[424375363,1780817267000,-500.0,0.00011591,2]
[424375364,1780817279000,-500.0,0.00011591,2]
[424375365,1780817408000,181.3,5e-05,2]
[424375394,1780817432000,-500.0,0.0001159,2]
[424375401,1780817432000,-5000.0,0.00011591,2]
[424375399,1780817432000,-1130.85713245,0.00011591,2]
[424375397,1780817432000,-404.11833853,0.0001159,2]
[424375402,1780817432000,-5000.0,0.00011591,2]
[424375404,1780817432000,-34.52789977,0.00011591,2]
[424375403,1780817432000,-309.23236224,0.00011591,2]
[424375405,1780817432000,-272.50940633,0.00011945,2]
[424375400,1780817432000,-1297.50911616,0.00011591,2]
[424375395,1780817432000,-500.0,0.0001159,2]
[424375437,1780817441000,-152.0,0.00015229,30]
[424375448,1780817441000,-157.21600907,0.00018449,2]
[424375447,1780817441000,-164.2565042,0.00018449,2]
[424375446,1780817441000,-154.06458736,0.00018449,2]
[424375444,1780817441000,-152.0,0.00017958,7]
[424375445,1780817441000,-152.0,0.00017958,7]
[424375439,1780817441000,-343.76026201,0.0001653,2]
[424375442,1780817441000,-152.0,0.00017953,7]
[424375434,1780817441000,-603.85142739,0.000149,2]
[424375441,1780817441000,-2334.2183574,0.00017318,2]
[424375440,1780817441000,-566.89189294,0.00017318,2]
[424375436,1780817441000,-152.0,0.00015135,30]
[424375435,1780817441000,-152.0,0.00015135,30]
[424375451,1780817441000,-41.22443452,0.0001851,7]
[424375432,1780817441000,-227.49059367,0.00011945,2]
[424375433,1780817441000,-343.76026201,0.00014061,2]
[424375443,1780817441000,-152.0,0.00017953,7]
[424375449,1780817441000,-177.65971496,0.00018449,2]
[424375438,1780817441000,-152.0,0.00015297,30]
[424375453,1780817441000,-684.59,0.0001863,2]
[424375469,1780817441000,-16422.30974574,0.00019,2]
[424375468,1780817441000,-597.36910325,0.00018999,2]
[424375467,1780817441000,-500.0,0.00018999,2]
[424375465,1780817441000,-500.0,0.00018999,2]
[424375464,1780817441000,-500.0,0.00018999,2]
[424375463,1780817441000,-500.0,0.00018999,2]
[424375461,1780817441000,-500.0,0.00018999,2]
[424375462,1780817441000,-500.0,0.00018999,2]
[424375466,1780817441000,-500.0,0.00018999,2]
[424375459,1780817441000,-186.0,0.0001899,2]
[424375457,1780817441000,-8801.85929577,0.000189,2]
[424375452,1780817441000,-110.77556548,0.0001851,7]
[424375456,1780817441000,-500.0,0.00018899,2]
[424375460,1780817441000,-167.924,0.00018999,2]
[424375450,1780817441000,-152.0,0.0001851,7]
[424375454,1780817441000,-152.0,0.00018894,2]
[424375455,1780817441000,-1627.84600223,0.00018899,2]
[424375458,1780817441000,-684.59,0.00018904,2]
[424375493,1780817447000,-1317.83420016,0.00019,2]
[424375492,1780817447000,-3995.19877,0.00019,2]
[424375490,1780817447000,-16398.0000001,0.00019,2]
[424375491,1780817447000,-5745.02561858,0.00019,2]
[424375489,1780817447000,-25896.20948757,0.00019,2]
[424375488,1780817447000,-5000.0,0.0001881,2]
[424375494,1780817447000,-1635.14985727,0.00019,2]
[424375498,1780817897000,25094.41,0.00024884,30]
[424375500,1780817939000,7539.96,0.00024884,30]
[424375504,1780818430000,-1045.30731213,0.0001008,2]
[424375505,1780818442000,-1094.27687427,0.0001008,2]
[424375506,1780818590000,172.50574401,9.879e-05,2]
[424375543,1780818632000,-51.9979925,9.78e-05,2]
[424375541,1780818632000,-4948.0020075,9.78e-05,2]
[424375573,1780818633000,-401.09134439,0.00016173,2]
[424375584,1780818633000,-500.0,0.00018318,2]
[424375579,1780818633000,-197.63237899,0.00016496,2]
[424375582,1780818633000,-1424.36525196,0.00018219,2]
[424375571,1780818633000,-175.512192,0.00015063,2]
[424375567,1780818633000,-647.48660219,0.00010181,2]
[424375581,1780818633000,-155.21875911,0.00016738,2]
[424375577,1780818633000,-155.21875911,0.00016236,2]
[424375575,1780818633000,-685.1595902,0.00016174,2]
[424375561,1780818633000,-500.0,0.00010181,2]
[424375563,1780818633000,-500.0,0.00010181,2]
[424375557,1780818633000,-500.0,0.00010181,2]
[424375559,1780818633000,-500.0,0.00010181,2]
[424375552,1780818633000,-2981.87743065,9.879e-05,2]
[424375547,1780818633000,-1497.11482284,9.879e-05,2]
[424375554,1780818633000,-303.0,9.979e-05,2]
[424375555,1780818633000,-300.0,0.0001018,2]
[424375545,1780818633000,-348.5020025,9.879e-05,2]
[424375565,1780818633000,-500.0,0.00010181,2]
[424375569,1780818633000,-210.65343339,0.00011491,2]
[424375599,1780818633000,-593.32,0.0001863,2]
[424375586,1780818633000,-500.0,0.00018318,2]
[424375588,1780818633000,-35434.8300513,0.00018319,2]
[424375623,1780818633000,-193.86757874,0.00018989,2]
[424375625,1780818633000,-52521.12845398,0.00019,2]
[424375621,1780818633000,-167.924,0.00018978,2]
[424375619,1780818633000,-593.32,0.00018904,2]
[424375617,1780818633000,-193.86757875,0.000189,2]
[424375615,1780818633000,-186.0,0.000189,2]
[424375613,1780818633000,-444.0,0.000189,2]
[424375611,1780818633000,-3770.218,0.000189,2]
[424375627,1780818633000,-7722.97248675,0.00019,2]
[424375597,1780818633000,-159.89374346,0.00018466,2]
[424375609,1780818633000,-2212.822,0.000189,2]
[424375590,1780818633000,-870.5516993,0.00018319,2]
[424375603,1780818633000,-1424.3652519,0.00018811,2]
[424375596,1780818633000,-205.93299843,0.00018454,2]
[424375601,1780818633000,-355.73828217,0.00018648,2]
[424375607,1780818633000,-1415.0,0.000189,2]
[424375594,1780818633000,-220.1024127,0.00018454,2]
[424375605,1780818633000,-185.58217663,0.00018878,2]
[424375592,1780818633000,-153.30607058,0.00018454,2]
[424375697,1780818638000,-19774.01134077,0.00019,2]
[424375698,1780818638000,-343.76026201,0.00019,2]
[424375696,1780818638000,-3029.16003908,0.00019,2]
[424375743,1780818639000,-168.08930767,0.00019178,2]
[424375749,1780818639000,-2546.27,0.00019178,2]
[424375741,1780818639000,-500.0,0.00019178,2]
[424375739,1780818639000,-500.0,0.00019178,2]
[424375740,1780818639000,-500.0,0.00019178,2]
[424375731,1780818639000,-531.45,0.00019178,2]
[424375730,1780818639000,-2332.0,0.00019178,2]
[424375734,1780818639000,-964.26,0.00019178,2]
[424375729,1780818639000,-500.0,0.00019178,2]
[424375732,1780818639000,-500.0,0.00019178,2]
[424375735,1780818639000,-571.76,0.00019178,2]
[424375745,1780818639000,-500.0,0.00019178,2]
[424375738,1780818639000,-500.0,0.00019178,2]
[424375742,1780818639000,-356.92410846,0.00019178,2]
[424375753,1780818639000,-537.65,0.00019178,2]
[424375744,1780818639000,-513.59,0.00019178,2]
[424375748,1780818639000,-500.0,0.00019178,2]
[424375747,1780818639000,-500.0,0.00019178,2]
[424375751,1780818639000,-500.0,0.00019178,2]
[424375762,1780818639000,-500.0,0.00019178,2]
[424375761,1780818639000,-500.0,0.00019178,2]
[424375750,1780818639000,-878.24,0.00019178,2]
[424375754,1780818639000,-500.0,0.00019178,2]
[424375752,1780818639000,-500.0,0.00019178,2]
[424375733,1780818639000,-500.0,0.00019178,2]
[424375759,1780818639000,-500.0,0.00019178,2]
[424375760,1780818639000,-505.48,0.00019178,2]
[424375756,1780818639000,-500.0,0.00019178,2]
[424375746,1780818639000,-500.0,0.00019178,2]
[424375725,1780818639000,-500.0,0.00019178,2]
[424375717,1780818639000,-500.0,0.00019178,2]
[424375728,1780818639000,-500.0,0.00019178,2]
[424375699,1780818639000,-152.0,0.00019022,2]
[424375700,1780818639000,-193.86757874,0.00019078,2]
[424375710,1780818639000,-500.0,0.00019178,2]
[424375702,1780818639000,-220.24,0.00019168,3]
[424375712,1780818639000,-898.1,0.00019178,2]
[424375711,1780818639000,-500.0,0.00019178,2]
[424375701,1780818639000,-166.0,0.00019089,2]
[424375703,1780818639000,-500.0,0.00019178,2]
[424375705,1780818639000,-500.0,0.00019178,2]
[424375708,1780818639000,-516.79,0.00019178,2]
[424375707,1780818639000,-2567.4,0.00019178,2]
[424375704,1780818639000,-500.0,0.00019178,2]
[424375709,1780818639000,-500.0,0.00019178,2]
[424375737,1780818639000,-500.0,0.00019178,2]
[424375713,1780818639000,-1508.87,0.00019178,2]
[424375724,1780818639000,-500.0,0.00019178,2]
[424375715,1780818639000,-860.01,0.00019178,2]
[424375722,1780818639000,-500.0,0.00019178,2]
[424375755,1780818639000,-500.0,0.00019178,2]
[424375723,1780818639000,-500.0,0.00019178,2]
[424375721,1780818639000,-745.68,0.00019178,2]
[424375716,1780818639000,-500.0,0.00019178,2]
[424375720,1780818639000,-500.0,0.00019178,2]
[424375719,1780818639000,-500.0,0.00019178,2]
[424375718,1780818639000,-500.0,0.00019178,2]
[424375726,1780818639000,-533.14514084,0.00019178,2]
[424375736,1780818639000,-500.0,0.00019178,2]
[424375727,1780818639000,-628.36,0.00019178,2]
[424375714,1780818639000,-625.5,0.00019178,2]
[424375758,1780818639000,-500.0,0.00019178,2]
[424375706,1780818639000,-500.0,0.00019178,2]
[424375764,1780818639000,-288.16771948,0.00019178,2]
[424375800,1780818639000,-500.0,0.00019178,2]
[424375796,1780818639000,-398.07369101,0.00019178,2]
[424375799,1780818639000,-500.0,0.00019178,2]
[424375797,1780818639000,-170.66646375,0.00019178,2]
[424375798,1780818639000,-601.78,0.00019178,2]
[424375802,1780818639000,-2865.27,0.00019178,2]
[424375809,1780818639000,-500.0,0.00019178,2]
[424375810,1780818639000,-1597.53,0.00019178,2]
[424375808,1780818639000,-500.0,0.00019178,2]
[424375804,1780818639000,-1675.06,0.00019178,2]
[424375803,1780818639000,-548.43,0.00019178,2]
[424375811,1780818639000,-764.33,0.00019178,2]
[424375812,1780818639000,-517.04844328,0.00019178,2]
[424375801,1780818639000,-500.0,0.00019178,2]
[424375813,1780818639000,-564.01,0.00019178,2]
[424375807,1780818639000,-500.0,0.00019178,2]
[424375814,1780818639000,-1251.79,0.00019178,2]
[424375805,1780818639000,-767.31,0.00019178,2]
[424375816,1780818639000,-500.0,0.00019178,2]
[424375817,1780818639000,-500.0,0.00019178,2]
[424375815,1780818639000,-500.0,0.00019178,2]
[424375821,1780818639000,-226.97240642,0.00019178,2]
[424375818,1780818639000,-2188.86,0.00019178,2]
[424375824,1780818639000,-500.0,0.00019178,2]
[424375823,1780818639000,-500.0,0.00019178,2]
[424375822,1780818639000,-1071.3,0.00019178,2]
[424375820,1780818639000,-500.0,0.00019178,2]
[424375757,1780818639000,-1030.65,0.00019178,2]
[424375806,1780818639000,-500.0,0.00019178,2]
[424375795,1780818639000,-500.0,0.00019178,2]
[424375819,1780818639000,-500.0,0.00019178,2]
[424375793,1780818639000,-500.0,0.00019178,2]
[424375774,1780818639000,-178.6068825,0.00019178,2]
[424375792,1780818639000,-500.0,0.00019178,2]
[424375768,1780818639000,-500.0,0.00019178,2]
[424375775,1780818639000,-500.0,0.00019178,2]
[424375765,1780818639000,-500.0,0.00019178,2]
[424375766,1780818639000,-657.17,0.00019178,2]
[424375767,1780818639000,-500.0,0.00019178,2]
[424375770,1780818639000,-500.0,0.00019178,2]
[424375771,1780818639000,-500.0,0.00019178,2]
[424375769,1780818639000,-500.0,0.00019178,2]
[424375772,1780818639000,-296.64555614,0.00019178,2]
[424375773,1780818639000,-500.0,0.00019178,2]
[424375786,1780818639000,-520.26,0.00019178,2]
[424375787,1780818639000,-1549.29,0.00019178,2]
[424375763,1780818639000,-1621.59,0.00019178,2]
[424375788,1780818639000,-500.0,0.00019178,2]
[424375794,1780818639000,-553.51143478,0.00019178,2]
[424375776,1780818639000,-500.0,0.00019178,2]
[424375791,1780818639000,-1247.28,0.00019178,2]
[424375790,1780818639000,-500.0,0.00019178,2]
[424375785,1780818639000,-1012.89,0.00019178,2]
[424375779,1780818639000,-881.53,0.00019178,2]
[424375784,1780818639000,-500.0,0.00019178,2]
[424375789,1780818639000,-500.0,0.00019178,2]
[424375783,1780818639000,-500.0,0.00019178,2]
[424375782,1780818639000,-500.0,0.00019178,2]
[424375781,1780818639000,-1000.0,0.00019178,2]
[424375780,1780818639000,-500.0,0.00019178,2]
[424375777,1780818639000,-871.64,0.00019178,2]
[424375778,1780818639000,-500.0,0.00019178,2]
[424375846,1780818640000,-500.0,0.00019178,2]
[424375854,1780818640000,-508.79,0.00019178,2]
[424375864,1780818640000,-728.87,0.00019178,2]
[424375865,1780818640000,-500.0,0.00019178,2]
[424375866,1780818640000,-500.0,0.00019178,2]
[424375858,1780818640000,-500.0,0.00019178,2]
[424375859,1780818640000,-555.4,0.00019178,2]
[424375853,1780818640000,-500.0,0.00019178,2]
[424375843,1780818640000,-2879.1,0.00019178,2]
[424375856,1780818640000,-522.13,0.00019178,2]
[424375862,1780818640000,-500.0,0.00019178,2]
[424375860,1780818640000,-221.42736377,0.00019178,2]
[424375857,1780818640000,-3916.83,0.00019178,2]
[424375863,1780818640000,-500.0,0.00019178,2]
[424375861,1780818640000,-500.0,0.00019178,2]
[424375868,1780818640000,-5476.58,0.00019178,2]
[424375869,1780818640000,-500.0,0.00019178,2]
[424375878,1780818640000,-500.0,0.00019178,2]
[424375879,1780818640000,-500.0,0.00019178,2]
[424375845,1780818640000,-500.0,0.00019178,2]
[424375867,1780818640000,-500.0,0.00019178,2]
[424375855,1780818640000,-763.66,0.00019178,2]
[424375847,1780818640000,-2928.74,0.00019178,2]
[424375833,1780818640000,-922.7,0.00019178,2]
[424375842,1780818640000,-500.0,0.00019178,2]
[424375870,1780818640000,-760.55,0.00019178,2]
[424375826,1780818640000,-500.0,0.00019178,2]
[424375825,1780818640000,-500.0,0.00019178,2]
[424375827,1780818640000,-500.0,0.00019178,2]
[424375830,1780818640000,-460.50075272,0.00019178,2]
[424375828,1780818640000,-500.0,0.00019178,2]
[424375831,1780818640000,-500.0,0.00019178,2]
[424375832,1780818640000,-1430.87,0.00019178,2]
[424375834,1780818640000,-807.06,0.00019178,2]
[424375829,1780818640000,-39.49924728,0.00019178,2]
[424375844,1780818640000,-500.0,0.00019178,2]
[424375835,1780818640000,-500.0,0.00019178,2]
[424375836,1780818640000,-500.0,0.00019178,2]
[424375838,1780818640000,-500.0,0.00019178,2]
[424375840,1780818640000,-500.0,0.00019178,2]
[424375849,1780818640000,-500.0,0.00019178,2]
[424375848,1780818640000,-2640.98,0.00019178,2]
[424375852,1780818640000,-500.0,0.00019178,2]
[424375850,1780818640000,-500.43044915,0.00019178,2]
[424375839,1780818640000,-986.07,0.00019178,2]
[424375851,1780818640000,-500.0,0.00019178,2]
[424375841,1780818640000,-500.0,0.00019178,2]
[424375837,1780818640000,-500.0,0.00019178,2]
[424375880,1780818640000,-1532.31,0.00019178,2]
[424375889,1780818640000,-1570.04,0.00019178,2]
[424375873,1780818640000,-610.13141401,0.00019178,2]
[424375902,1780818640000,-500.0,0.00019178,2]
[424375904,1780818640000,-500.0,0.00019178,2]
[424375907,1780818640000,-1644.5,0.00019178,2]
[424375913,1780818640000,-500.0,0.00019178,2]
[424375906,1780818640000,-657.45,0.00019178,2]
[424375909,1780818640000,-500.0,0.00019178,2]
[424375908,1780818640000,-756.05,0.00019178,2]
[424375910,1780818640000,-2947.99,0.00019178,2]
[424375911,1780818640000,-1206.63,0.00019178,2]
[424375915,1780818640000,-1010.47,0.00019178,2]
[424375905,1780818640000,-500.0,0.00019178,2]
[424375914,1780818640000,-500.0,0.00019178,2]
[424375916,1780818640000,-500.0,0.00019178,2]
[424375872,1780818640000,-297.19221116,0.00019178,2]
[424375920,1780818640000,-727.77622567,0.00019178,2]
[424375922,1780818640000,-660.38,0.00019178,2]
[424375925,1780818640000,-1864.53,0.00019178,2]
[424375926,1780818640000,-500.0,0.00019178,2]
[424375924,1780818640000,-500.0,0.00019178,2]
[424375923,1780818640000,-500.0,0.00019178,2]
[424375921,1780818640000,-2694.09,0.00019178,2]
[424375927,1780818640000,-500.0,0.00019178,2]
[424375912,1780818640000,-1790.2,0.00019178,2]
[424375899,1780818640000,-500.0,0.00019178,2]
[424375917,1780818640000,-696.38377433,0.00019178,2]
[424375901,1780818640000,-500.0,0.00019178,2]
[424375897,1780818640000,-500.0,0.00019178,2]
[424375875,1780818640000,-594.08,0.00019178,2]
[424375877,1780818640000,-500.0,0.00019178,2]
[424375871,1780818640000,-500.0,0.00019178,2]
[424375874,1780818640000,-557.97,0.00019178,2]
[424375881,1780818640000,-500.0,0.00019178,2]
[424375883,1780818640000,-500.0,0.00019178,2]
[424375885,1780818640000,-500.0,0.00019178,2]
[424375886,1780818640000,-500.0,0.00019178,2]
[424375884,1780818640000,-2903.6,0.00019178,2]
[424375882,1780818640000,-500.0,0.00019178,2]
[424375876,1780818640000,-823.07,0.00019178,2]
[424375892,1780818640000,-500.0,0.00019178,2]
[424375900,1780818640000,-941.79,0.00019178,2]
[424375893,1780818640000,-942.63,0.00019178,2]
[424375896,1780818640000,-500.0,0.00019178,2]
[424375903,1780818640000,-500.0,0.00019178,2]
[424375898,1780818640000,-500.0,0.00019178,2]
[424375894,1780818640000,-500.0,0.00019178,2]
[424375888,1780818640000,-500.0,0.00019178,2]
[424375890,1780818640000,-500.0,0.00019178,2]
[424375891,1780818640000,-500.0,0.00019178,2]
[424375895,1780818640000,-500.0,0.00019178,2]
[424375939,1780818641000,-500.0,0.00019178,2]
[424375953,1780818641000,-712.58951452,0.00019178,2]
[424375947,1780818641000,-2548.46501222,0.00019178,2]
[424375949,1780818641000,-500.0,0.00019178,2]
[424375950,1780818641000,-500.0,0.00019178,2]
[424375952,1780818641000,-853.9047769,0.00019178,2]
[424375958,1780818641000,-108.27187871,0.00019178,2]
[424375948,1780818641000,-837.82498778,0.00019178,2]
[424375954,1780818641000,-308.25570858,0.00019178,2]
[424375956,1780818641000,-500.0,0.00019178,2]
[424375955,1780818641000,-500.0,0.00019178,2]
[424375957,1780818641000,-703.72,0.00019178,2]
[424375936,1780818641000,-899.85,0.00019178,2]
[424375951,1780818641000,-500.0,0.00019178,2]
[424375937,1780818641000,-500.0,0.00019178,2]
[424375932,1780818641000,-350.67142914,0.00019178,2]
[424375938,1780818641000,-876.96,0.00019178,2]
[424375943,1780818641000,-500.0,0.00019178,2]
[424375941,1780818641000,-1131.87,0.00019178,2]
[424375942,1780818641000,-641.49,0.00019178,2]
[424375935,1780818641000,-910.79,0.00019178,2]
[424375933,1780818641000,-500.0,0.00019178,2]
[424375963,1780818641000,-500.0,0.00019178,2]
[424375944,1780818641000,-761.53,0.00019178,2]
[424375945,1780818641000,-844.15,0.00019178,2]
[424375934,1780818641000,-500.0,0.00019178,2]
[424375931,1780818641000,-156.64413808,0.00019178,2]
[424375928,1780818641000,-500.0,0.00019178,2]
[424375929,1780818641000,-500.0,0.00019178,2]
[424375930,1780818641000,-642.27,0.00019178,2]
[424375940,1780818641000,-1794.93,0.00019178,2]
[424375959,1780818641000,-391.72812129,0.00019178,2]
[424375946,1780818641000,-606.54,0.00019178,2]
[424375961,1780818641000,-500.0,0.00019178,2]
[424375992,1780818641000,-500.0,0.00019178,2]
[424375991,1780818641000,-707.71,0.00019178,2]
[424375988,1780818641000,-500.0,0.00019178,2]
[424375986,1780818641000,-1076.4,0.00019178,2]
[424375990,1780818641000,-500.0,0.00019178,2]
[424375989,1780818641000,-15469.59,0.00019178,2]
[424375987,1780818641000,-500.0,0.00019178,2]
[424375985,1780818641000,-1231.87,0.00019178,2]
[424375982,1780818641000,-500.0,0.00019178,2]
[424375978,1780818641000,-954.06,0.00019178,2]
[424375981,1780818641000,-500.0,0.00019178,2]
[424375977,1780818641000,-557.39,0.00019178,2]
[424375976,1780818641000,-500.0,0.00019178,2]
[424375980,1780818641000,-500.0,0.00019178,2]
[424375993,1780818641000,-668.44651386,0.00019178,2]
[424375974,1780818641000,-387.21675024,0.00019178,2]
[424375975,1780818641000,-3067.36,0.00019178,2]
[424375979,1780818641000,-500.0,0.00019178,2]
[424375973,1780818641000,-500.0,0.00019178,2]
[424375983,1780818641000,-689.17,0.00019178,2]
[424375972,1780818641000,-500.0,0.00019178,2]
[424375968,1780818641000,-500.0,0.00019178,2]
[424375967,1780818641000,-500.0,0.00019178,2]
[424375966,1780818641000,-927.31,0.00019178,2]
[424375964,1780818641000,-804.21,0.00019178,2]
[424375970,1780818641000,-500.0,0.00019178,2]
[424375960,1780818641000,-1553.53,0.00019178,2]
[424375962,1780818641000,-1141.26,0.00019178,2]
[424375969,1780818641000,-500.0,0.00019178,2]
[424375971,1780818641000,-705.83,0.00019178,2]
[424375984,1780818641000,-751.28,0.00019178,2]
[424375965,1780818641000,-500.0,0.00019178,2]
[424376002,1780818644000,-190.86204559,0.00019178,2]
[424376001,1780818644000,-1949.13795441,0.00019178,2]
[424376000,1780818644000,-3658.80553173,0.00019178,2]
[424376059,1780818647000,-309.13795441,0.00019178,2]
[424376063,1780818647000,-761.39,0.00019178,2]
[424376065,1780818647000,-500.0,0.00019178,2]
[424376075,1780818647000,-5.17461585,0.00019178,2]
[424376081,1780818647000,-500.0,0.00019178,2]
[424376061,1780818647000,-500.0,0.00019178,2]
[424376083,1780818647000,-701.66,0.00019178,2]
[424376069,1780818647000,-1989.12,0.00019178,2]
[424376067,1780818647000,-3168.56,0.00019178,2]
[424376071,1780818647000,-551.9,0.00019178,2]
[424376085,1780818647000,-973.52538419,0.00019178,2]
[424376073,1780818647000,-494.82538415,0.00019178,2]
[424376077,1780818647000,-1510.54,0.00019178,2]
[424376079,1780818647000,-500.0,0.00019178,2]
[424376190,1780819546000,-306.05955432,8.864e-05,2]
[424376191,1780819546000,-51.21027201,8.953e-05,2]
[424376192,1780819630000,-1156.88980424,8.773e-05,2]
[424376193,1780819632000,-306.74581526,8.773e-05,2]
[424376194,1780819653000,-401.94222311,8.773e-05,2]
[424376206,1780819750000,-500.0,8.861e-05,2]
[424376208,1780819750000,-500.0,8.861e-05,2]
[424376210,1780819750000,-500.0,8.861e-05,2]
[424376205,1780819750000,-500.0,8.861e-05,2]
[424376207,1780819750000,-500.0,8.861e-05,2]
[424376204,1780819750000,-500.0,8.861e-05,2]
[424376211,1780819750000,-500.0,8.861e-05,2]
[424376202,1780819750000,-500.0,8.861e-05,2]
[424376200,1780819750000,-320.40074116,8.861e-05,2]
[424376199,1780819750000,-500.0,8.861e-05,2]
[424376197,1780819750000,-213.2185131,8.861e-05,2]
[424376198,1780819750000,-500.0,8.861e-05,2]
[424376196,1780819750000,-3134.42215739,8.773e-05,2]
[424376203,1780819750000,-195.70355703,8.861e-05,2]
[424376209,1780819750000,-500.0,8.861e-05,2]
[424376201,1780819750000,-500.0,8.861e-05,2]
[424376214,1780819750000,-500.0,8.861e-05,2]
[424376212,1780819750000,-500.0,8.861e-05,2]
[424376226,1780819750000,-490.45774312,8.951e-05,2]
[424376224,1780819750000,-363.93055763,8.861e-05,2]
[424376225,1780819750000,-5000.0,8.862e-05,2]
[424376223,1780819750000,-500.0,8.861e-05,2]
[424376222,1780819750000,-500.0,8.861e-05,2]
[424376221,1780819750000,-500.0,8.861e-05,2]
[424376227,1780819750000,-162.37724536,9.415e-05,2]
[424376220,1780819750000,-500.0,8.861e-05,2]
[424376219,1780819750000,-500.0,8.861e-05,2]
[424376218,1780819750000,-500.0,8.861e-05,2]
[424376217,1780819750000,-639.30557629,8.861e-05,2]
[424376216,1780819750000,-500.0,8.861e-05,2]
[424376215,1780819750000,-500.0,8.861e-05,2]
[424376213,1780819750000,-500.0,8.861e-05,2]
[424376228,1780819770000,-483.55368041,9.321e-05,2]
[424376276,1780819831000,-433.45811007,9.228e-05,2]
[424376284,1780819831000,-1134.51442417,9.228e-05,2]
[424376290,1780819831000,-650.47378535,9.321e-05,2]
[424376288,1780819831000,-3865.97253424,9.321e-05,2]
[424376302,1780819831000,-500.0,0.00016438,2]
[424376286,1780819831000,-3432.02746576,9.228e-05,2]
[424376291,1780819831000,-194.89258097,9.415e-05,2]